bitfinex/quotes_SOLUSD_20241220
["timestamp","ask_amount","ask_price","bid_price","bid_amount"]
[1734714083187,43.00430106,190.53,190.47,138.5]
[1734714084521,43.00430106,190.51,190.47,138.5]
[1734714085521,43.00430106,190.53,190.47,138.5]
[1734714085710,43.00430106,190.48,190.44,147.3349]
[1734714085908,43.00430106,190.5,190.44,147.3349]
[1734714086218,43.00430106,190.52,190.44,147.3349]
[1734714086405,20.0,190.56,190.44,147.3349]
[1734714086406,43.00430106,190.54,190.45,194.63110106]
[1734714087820,43.00430106,190.56,190.47,181.50430106]
[1734714088619,43.00430106,190.56,190.47,194.62910106]
[1734714088792,43.00430106,190.6,190.49,181.50430106]
[1734714088997,43.00430106,190.6,190.51,43.00430106]
[1734714089201,43.00430106,190.58,190.49,181.50430106]
[1734714089608,43.00430106,190.58,190.49,493.50430106]
[1734714089790,13.1131,190.65,190.49,450.5]
[1734714089993,43.00430106,190.56,190.49,138.5]
[1734714090435,43.00430106,190.54,190.49,138.5]
[1734714091322,43.00430106,190.58,190.49,138.5]
[1734714091552,43.00430106,190.58,190.49,181.50430106]
[1734714092435,43.00430106,190.6,190.51,43.00430106]
[1734714092934,43.00430106,190.6,190.52,312.0]
[1734714093639,43.00430106,190.54,190.49,138.5]
[1734714093821,43.00430106,190.6,190.44,21.9618]
[1734714093822,43.00430106,190.52,190.44,147.3349]
[1734714094134,43.00430106,190.58,190.49,43.00430106]
[1734714094335,13.9299093,190.67,190.51,43.00430106]
[1734714094336,43.00430106,190.6,190.51,43.00430106]
[1734714094532,43.00430106,190.62,190.53,43.00430106]
[1734714094735,43.00430106,190.62,190.53,181.50430106]
[1734714094976,43.00430106,190.64,190.55,43.00430106]
[1734714095130,43.00430106,190.66,190.57,43.00430106]
[1734714095443,3.0174967,190.71,190.57,138.5]
[1734714095444,43.00430106,190.65,190.57,138.5]
[1734714095839,43.00430106,190.65,190.57,181.50430106]
[1734714096016,43.00430106,190.67,190.57,181.50430106]
[1734714096217,43.00430106,190.64,190.57,138.5]
[1734714096624,43.00430106,190.64,190.57,450.5]
[1734714097838,43.00430106,190.66,190.57,493.50430106]
[1734714098036,43.00430106,190.66,190.57,181.50430106]
[1734714098338,0.6776967,190.71,190.63,43.00430106]
[1734714098543,0.6776967,190.71,190.65,43.00430106]
[1734714098838,0.6776967,190.71,190.65,181.50430106]
[1734714099427,43.00430106,190.7,190.65,138.5]
[1734714100245,43.00430106,190.68,190.61,138.5]
[1734714100517,43.00430106,190.66,190.61,138.5]
[1734714104125,43.00430106,190.64,190.57,138.5]
[1734714104339,43.00430106,190.62,190.57,138.5]
[1734714104519,43.00430106,190.6,190.51,187.72710106]
[1734714104717,43.00430106,190.56,190.51,144.7228]
[1734714104934,43.00430106,190.56,190.51,138.5]
[1734714105358,43.00430106,190.54,190.5,138.5]
[1734714106094,43.00430106,190.52,190.46,144.7228]
[1734714106264,43.00430106,190.54,190.46,144.7228]
[1734714106747,43.00430106,190.56,190.47,181.50430106]
[1734714106947,43.00430106,190.54,190.47,138.5]
[1734714107242,43.00430106,190.56,190.47,493.50430106]
[1734714109268,43.00430106,190.56,190.47,181.50430106]
[1734714109580,43.00430106,190.54,190.47,138.5]
[1734714109774,43.00430106,190.52,190.47,138.5]
[1734714110094,43.00430106,190.54,190.47,138.5]
[1734714110607,43.00430106,190.52,190.47,138.5]
[1734714111473,43.00430106,190.48,190.45,138.5]
[1734714111656,43.00430106,190.48,190.41,144.5664]
[1734714111862,43.00430106,190.46,190.41,144.5664]
[1734714112469,6.6136,190.54,190.41,144.5664]
[1734714112470,43.00430106,190.48,190.41,144.5664]
[1734714112782,43.00430106,190.5,190.41,144.5664]
[1734714112987,43.00430106,190.52,190.43,181.50430106]
[1734714113964,19.1951,190.59,190.47,181.50430106]
[1734714113965,43.00430106,190.56,190.47,181.50430106]
[1734714114282,43.00430106,190.58,190.49,181.50430106]
[1734714114483,43.00430106,190.62,190.53,43.00430106]
[1734714114700,43.00430106,190.66,190.57,43.00430106]
[1734714114858,43.00430106,190.68,190.59,43.00430106]
[1734714115053,7.88344783,190.69,190.61,43.00430106]
[1734714115302,0.6776967,190.71,190.63,43.00430106]
[1734714115656,43.00430106,190.68,190.61,138.5]
[1734714115884,43.00430106,190.64,190.61,138.5]
[1734714116062,43.00430106,190.64,190.57,138.5]
[1734714117264,43.00430106,190.6,190.52,146.8833]
[1734714117665,43.00430106,190.58,190.52,140.7889]
[1734714119391,43.00430106,190.53,190.44,140.7992]
[1734714119599,43.00430106,190.51,190.44,140.7992]
[1734714119963,43.00430106,190.53,190.44,183.80350106]
[1734714120164,43.00430106,190.55,190.46,181.50430106]
[1734714120470,43.00430106,190.57,190.46,181.50430106]
[1734714121184,43.00430106,190.57,190.48,43.00430106]
[1734714121469,43.00430106,190.61,190.52,43.00430106]
[1734714121669,43.00430106,190.61,190.52,181.50430106]
[1734714121884,43.00430106,190.59,190.52,138.5]
[1734714122091,43.00430106,190.57,190.52,138.5]
[1734714122587,43.00430106,190.57,190.48,138.5]
[1734714122781,20.0,190.52,190.46,138.5]
[1734714122969,43.00430106,190.53,190.46,138.5]
[1734714123379,20.0,190.52,190.46,138.5]
[1734714123572,43.00430106,190.55,190.46,181.50430106]
[1734714124198,43.00430106,190.53,190.46,138.5]
[1734714124372,43.00430106,190.51,190.46,138.5]
[1734714124768,43.00430106,190.53,190.46,138.5]
[1734714124969,63.00430106,190.55,190.46,138.5]
[1734714125294,43.00430106,190.57,190.48,43.00430106]
[1734714126370,43.00430106,190.59,190.5,181.50430106]
[1734714126683,43.00430106,190.59,190.5,138.5]
[1734714126880,43.00430106,190.57,190.5,138.5]
[1734714127081,43.00430106,190.59,190.5,138.5]
[1734714128203,40.68534695,190.59,190.5,138.5]
[1734714128681,43.00430106,190.57,190.5,138.5]
[1734714129110,43.00430106,190.59,190.5,138.5]
[1734714129275,43.00430106,190.63,190.53,181.50430106]
[1734714129892,43.00430106,190.65,190.55,181.50430106]
[1734714130196,43.00430106,190.65,190.56,140.6636]
[1734714131102,43.00430106,190.65,190.57,181.50430106]
[1734714131601,56.11400106,190.7,190.57,138.5]
[1734714131602,43.00430106,190.63,190.57,138.5]
[1734714131793,43.00430106,190.61,190.57,138.5]
[1734714131978,43.00430106,190.59,190.51,190.02530106]
[1734714132324,43.00430106,190.61,190.51,190.02530106]
[1734714133100,43.00430106,190.57,190.51,8.521]
[1734714133300,43.00430106,190.55,190.49,138.5]
[1734714133616,43.00430106,190.51,190.43,138.5]
[1734714133798,43.00430106,190.47,190.41,144.6219]
[1734714134003,43.00430106,190.45,190.41,138.5]
[1734714134185,43.00430106,190.45,190.4,2.2683]
[1734714134186,43.00430106,190.43,190.4,140.7683]
[1734714134605,43.00430106,190.45,190.4,140.7683]
[1734714135003,43.00430106,190.51,190.41,43.00430106]
[1734714135213,43.00430106,190.47,190.41,138.5]
[1734714136334,43.00430106,190.49,190.41,181.50430106]
[1734714137220,43.00430106,190.47,190.41,138.5]
[1734714137924,43.00430106,190.49,190.41,138.5]
[1734714138449,43.00430106,190.45,190.4,140.7683]
[1734714138625,43.00430106,190.41,190.37,138.5]
[1734714139937,43.00430106,190.39,190.34,140.7393]
[1734714140137,43.00430106,190.36,190.3,144.9691]
[1734714140451,43.00430106,190.34,190.3,144.9691]
[1734714140830,43.00430106,190.34,190.3,138.5]
[1734714142554,43.00430106,190.32,190.28,138.5]
[1734714142762,43.00430106,190.36,190.28,138.5]
[1734714142980,43.00430106,190.4,190.31,43.00430106]
[1734714143175,43.00430106,190.4,190.33,43.00430106]
[1734714143767,43.00430106,190.42,190.35,43.00430106]
[1734714144072,43.00430106,190.44,190.35,183.75430106]
[1734714144668,43.00430106,190.42,190.35,140.75]
[1734714145051,43.00430106,190.4,190.35,140.75]
[1734714145484,13.124,190.49,190.35,140.75]
[1734714145485,43.00430106,190.42,190.35,183.75430106]
[1734714145647,43.00430106,190.46,190.37,181.50430106]
[1734714145846,43.00430106,190.46,190.37,499.62120106]
[1734714146491,43.00430106,190.48,190.39,43.00430106]
[1734714146689,43.00430106,190.5,190.41,181.50430106]
[1734714147366,43.00430106,190.48,190.41,138.5]
[1734714147555,43.00430106,190.46,190.41,138.5]
[1734714148046,43.00430106,190.44,190.37,187.62120106]
[1734714149550,43.00430106,190.44,190.37,144.6169]
[1734714149967,43.00430106,190.44,190.37,187.62120106]
[1734714150261,43.00430106,190.48,190.39,181.50430106]
[1734714150514,43.00430106,190.52,190.43,181.50430106]
[1734714150699,43.00430106,190.5,190.43,181.50430106]
[1734714151319,43.00430106,190.5,190.43,138.5]
[1734714152517,43.00430106,190.48,190.41,138.5]
[1734714152732,43.00430106,190.46,190.41,138.5]
[1734714152929,43.00430106,190.44,190.37,144.6169]
[1734714153514,43.00430106,190.42,190.37,138.5]
[1734714153824,43.00430106,190.38,190.32,138.5]
[1734714154133,43.00430106,190.34,190.27,138.5]
[1734714154363,43.00430106,190.31,190.27,138.5]
[1734714154742,43.00430106,190.31,190.23,140.8541]
[1734714155422,43.00430106,190.29,190.23,140.8541]
[1734714155665,43.00430106,190.27,190.21,138.5]
[1734714155837,43.00430106,190.25,190.21,138.5]
[1734714157731,20.0,190.2,190.12,138.5]
[1734714157980,43.00430106,190.18,190.12,138.5]
[1734714158157,43.00430106,190.2,190.12,138.5]
[1734714158327,43.00430106,190.2,190.12,181.50430106]
[1734714158530,43.00430106,190.22,190.14,43.00430106]
[1734714158746,43.00430106,190.26,190.18,43.00430106]
[1734714158944,43.00430106,190.22,190.1,140.8185]
[1734714159163,43.00430106,190.22,190.14,181.50430106]
[1734714159331,43.00430106,190.24,190.16,43.00430106]
[1734714159529,43.00430106,190.26,190.16,181.50430106]
[1734714160125,43.00430106,190.26,190.18,43.00430106]
[1734714160326,43.00430106,190.28,190.18,181.50430106]
[1734714160632,43.00430106,190.3,190.2,181.50430106]
[1734714160839,43.00430106,190.34,190.24,181.50430106]
[1734714161062,43.00430106,190.36,190.26,181.50430106]
[1734714161357,43.00430106,190.34,190.26,181.50430106]
[1734714162160,43.00430106,190.3,190.24,138.5]
[1734714162341,63.00430106,190.25,190.12,138.5]
[1734714162544,20.0,190.11,190.04,139.1776967]
[1734714162742,43.776884,190.06,190.04,0.6776967]
[1734714163040,43.00430106,190.2,190.04,0.6776967]
[1734714163385,20.0,190.12,190.04,182.18199776]
[1734714163570,23.776884,190.11,190.04,182.18199776]
[1734714164066,20.0,190.12,190.04,182.18199776]
[1734714164454,43.00430106,190.13,190.04,182.18199776]
[1734714164898,43.00430106,190.15,190.04,182.18199776]
[1734714165176,43.00430106,190.15,190.04,195.33689776]
[1734714165675,43.00430106,190.15,190.06,43.00430106]
[1734714165878,43.00430106,190.17,190.08,181.50430106]
[1734714166240,43.00430106,190.19,190.08,194.65640106]
[1734714166778,43.00430106,190.23,190.12,181.50430106]
[1734714167081,43.00430106,190.23,190.14,43.00430106]
[1734714167288,43.00430106,190.21,190.12,187.61010106]
[1734714167464,43.00430106,190.21,190.12,144.6058]
[1734714169465,43.00430106,190.23,190.12,187.61010106]
[1734714169685,43.00430106,190.23,190.14,43.00430106]
[1734714170798,43.00430106,190.27,190.18,43.00430106]
[1734714170958,13.1328,190.37,190.18,138.5]
[1734714171292,43.00430106,190.26,190.21,138.5]
[1734714172759,43.00430106,190.3,190.21,181.50430106]
[1734714173181,43.00430106,190.26,190.21,138.5]
[1734714173491,43.00430106,190.24,190.21,138.5]
[1734714174683,43.00430106,190.26,190.21,138.5]
[1734714174994,43.00430106,190.28,190.21,138.5]
[1734714175172,43.00430106,190.24,190.21,138.5]
[1734714175594,43.00430106,190.22,190.15,138.5]
[1734714176387,43.00430106,190.24,190.15,181.50430106]
[1734714176762,43.00430106,190.26,190.17,181.50430106]
[1734714176964,43.00430106,190.24,190.17,138.5]
[1734714177462,43.00430106,190.22,190.17,138.5]
[1734714177878,43.00430106,190.24,190.17,138.5]
[1734714178083,43.00430106,190.26,190.17,138.5]
[1734714178397,43.00430106,190.26,190.17,181.50430106]
[1734714179102,43.00430106,190.28,190.19,43.00430106]
[1734714179589,43.00430106,190.28,190.19,181.50430106]
[1734714181008,43.00430106,190.31,190.21,43.00430106]
[1734714181203,43.00430106,190.33,190.23,181.50430106]
[1734714181367,43.00430106,190.31,190.23,138.5]
[1734714181765,43.00430106,190.29,190.23,138.5]
[1734714182304,43.00430106,190.33,190.24,8.6978]
[1734714182506,43.00430106,190.35,190.25,43.00430106]
[1734714182805,43.00430106,190.37,190.27,43.00430106]
[1734714183009,43.00430106,190.37,190.29,43.00430106]
[1734714183171,43.00430106,190.39,190.29,181.50430106]
[1734714183371,43.00430106,190.39,190.31,43.00430106]
[1734714183709,43.00430106,190.43,190.35,43.00430106]
[1734714184000,43.00430106,190.45,190.37,43.00430106]
[1734714184345,43.00430106,190.47,190.39,194.63490106]
[1734714184643,43.00430106,190.43,190.39,138.5]
[1734714184809,43.00430106,190.41,190.39,138.5]
[1734714185205,43.00430106,190.4,190.32,138.5]
[1734714185423,43.00430106,190.33,190.3,138.5]
[1734714185736,43.00430106,190.31,190.27,138.5]
[1734714185923,43.00430106,190.33,190.27,138.5]
[1734714186728,43.00430106,190.35,190.27,181.50430106]
[1734714187148,43.00430106,190.35,190.27,138.5]
[1734714187309,43.00430106,190.31,190.27,138.5]
[1734714187508,43.00430106,190.33,190.27,138.5]
[1734714187713,43.00430106,190.31,190.27,138.5]
[1734714188427,43.00430106,190.33,190.27,138.5]
[1734714189303,43.00430106,190.28,190.27,138.5]
[1734714189662,43.00430106,190.32,190.27,138.5]
[1734714189942,43.00430106,190.34,190.27,138.5]
[1734714190439,43.00430106,190.4,190.31,43.00430106]
[1734714190650,43.00430106,190.42,190.33,43.00430106]
[1734714190835,43.00430106,190.38,190.31,138.5]
[1734714193722,43.00430106,190.42,190.33,43.00430106]
[1734714194039,43.00430106,190.44,190.35,181.50430106]
[1734714194344,43.00430106,190.48,190.39,181.50430106]
[1734714194699,43.00430106,190.46,190.39,138.5]
[1734714194903,43.00430106,190.42,190.36,140.7995]
[1734714195142,43.00430106,190.38,190.32,138.5]
[1734714195732,43.00430106,190.34,190.3,147.0279]
[1734714195909,43.00430106,190.36,190.3,140.7995]
[1734714197042,43.00430106,190.34,190.3,138.5]
[1734714197416,43.00430106,190.34,190.25,200.65340106]
[1734714197615,43.00430106,190.4,190.25,144.509]
[1734714197616,43.00430106,190.32,190.25,144.509]
[1734714198635,43.00430106,190.34,190.25,187.51330106]
[1734714198944,43.00430106,190.32,190.25,144.509]
[1734714199441,43.00430106,190.3,190.25,138.5]
[1734714199759,69.26490106,190.4,190.23,138.5]
[1734714199760,43.00430106,190.28,190.23,138.5]
[1734714199941,43.00430106,190.3,190.23,138.5]
[1734714200112,43.00430106,190.32,190.23,138.5]
[1734714200314,43.00430106,190.3,190.23,138.5]
[1734714200518,43.00430106,190.24,190.21,138.5]
[1734714200723,43.00430106,190.24,190.16,140.893]
[1734714201242,23.776884,190.25,190.16,140.893]
[1734714201643,43.00430106,190.26,190.16,140.893]
[1734714201827,43.00430106,190.26,190.17,43.00430106]
[1734714202523,43.00430106,190.28,190.19,43.00430106]
[1734714202922,43.00430106,190.26,190.17,181.50430106]
[1734714203244,43.00430106,190.28,190.17,181.50430106]
[1734714203450,43.00430106,190.28,190.19,43.00430106]
[1734714204050,43.00430106,190.3,190.21,181.50430106]
[1734714204218,43.00430106,190.32,190.23,43.00430106]
[1734714204620,43.00430106,190.32,190.23,181.50430106]
[1734714204958,43.00430106,190.3,190.23,138.5]
[1734714206329,43.00430106,190.28,190.23,138.5]
[1734714206815,43.00430106,190.3,190.23,138.5]
[1734714207019,43.00430106,190.32,190.23,181.50430106]
[1734714207250,43.00430106,190.32,190.23,138.5]
[1734714207619,43.00430106,190.34,190.25,181.50430106]
[1734714207815,43.00430106,190.34,190.26,6.4065]
[1734714208148,43.00430106,190.3,190.21,187.91080106]
[1734714209049,26.54707059,190.29,190.21,144.9065]
[1734714209245,26.54707059,190.4,190.21,138.5]
[1734714209246,26.54707059,190.25,190.21,138.5]
[1734714210052,26.54707059,190.23,190.21,138.5]
[1734714210422,26.54707059,190.23,190.17,144.6263]
[1734714210624,46.54707059,190.25,190.17,144.6263]
[1734714211462,26.54707059,190.25,190.17,144.6263]
[1734714211625,26.54707059,190.27,190.18,165.04707059]
[1734714212126,26.54707059,190.27,190.18,138.5]
[1734714212570,26.54707059,190.24,190.18,138.5]
[1734714212724,26.54707059,190.22,190.18,138.5]
[1734714213055,26.54707059,190.2,190.16,140.893]
[1734714213234,26.54707059,190.2,190.12,6.5989]
[1734714213235,26.54707059,190.17,190.12,145.0989]
[1734714213630,26.54707059,190.19,190.12,145.0989]
[1734714213952,26.54707059,190.23,190.14,26.54707059]
[1734714214162,26.54707059,190.19,190.14,138.5]
[1734714214543,26.54707059,190.21,190.14,138.5]
[1734714215244,26.54707059,190.19,190.14,138.5]
[1734714215849,26.54707059,190.21,190.14,138.5]
[1734714216030,26.54707059,190.19,190.14,138.5]
[1734714216645,13.1392,190.27,190.14,138.5]
[1734714216646,46.54707059,190.24,190.14,165.04707059]
[1734714216845,26.54707059,190.24,190.14,165.04707059]
[1734714217230,26.54707059,190.24,190.16,26.54707059]
[1734714217429,26.54707059,190.22,190.14,138.5]
[1734714217631,26.54707059,190.18,190.14,138.5]
[1734714217833,39.4134,190.29,190.12,145.0989]
[1734714217834,26.54707059,190.16,190.12,145.0989]
[1734714218031,26.54707059,190.16,190.12,138.5]
[1734714218537,26.54707059,190.14,190.12,138.5]
[1734714219954,26.54707059,190.14,190.1,138.5]
[1734714220239,26.54707059,190.13,190.1,138.5]
[1734714220461,26.54707059,190.15,190.1,138.5]
[1734714220756,26.54707059,190.17,190.1,138.5]
[1734714220947,26.54707059,190.17,190.1,165.04707059]
[1734714221149,26.54707059,190.19,190.1,165.04707059]
[1734714221347,26.54707059,190.19,190.12,26.54707059]
[1734714221672,26.54707059,190.19,190.1,165.04707059]
[1734714222400,26.54707059,190.23,190.14,165.04707059]
[1734714222771,26.54707059,190.25,190.16,165.04707059]
[1734714223377,26.54707059,190.23,190.16,138.5]
[1734714226576,26.54707059,190.25,190.16,165.04707059]
[1734714226894,26.54707059,190.27,190.18,26.54707059]
[1734714227786,13.1352,190.33,190.16,151.6467]
[1734714227787,26.54707059,190.25,190.16,178.19377059]
[1734714228091,26.54707059,190.27,190.18,26.54707059]
[1734714228264,26.54707059,190.34,190.24,26.54707059]
[1734714228469,34.13994783,190.43,190.19,0.91383514]
[1734714228470,7.88344783,190.43,190.28,26.54707059]
[1734714228673,26.54707059,190.38,190.3,165.04707059]
[1734714228867,26.54707059,190.4,190.3,165.04707059]
[1734714230357,26.54707059,190.4,190.32,26.54707059]
[1734714230590,26.54707059,190.44,190.36,26.54707059]
[1734714230896,26.54707059,190.42,190.37,1.6185]
[1734714231088,26.54707059,190.4,190.37,140.1185]
[1734714232188,26.54707059,190.38,190.32,138.5]
[1734714232365,26.54707059,190.34,190.32,138.5]
[1734714234190,23.776884,190.33,190.26,1.5661]
[1734714234484,26.54707059,190.28,190.22,138.5]
[1734714235078,26.54707059,190.26,190.22,138.5]
[1734714235661,46.54707059,190.3,190.22,138.5]
[1734714235862,26.54707059,190.32,190.24,165.04707059]
[1734714236088,26.54707059,190.3,190.24,138.5]
[1734714237992,26.54707059,190.32,190.24,138.5]
[1734714238673,26.54707059,190.34,190.24,165.04707059]
[1734714238876,26.54707059,190.32,190.24,165.04707059]
[1734714239274,26.54707059,190.32,190.24,138.5]
[1734714239977,26.54707059,190.3,190.24,138.5]
[1734714240187,26.54707059,190.26,190.21,144.9273]
[1734714240675,26.54707059,190.28,190.21,144.9273]
[1734714241985,26.54707059,190.3,190.21,144.9273]
[1734714242179,26.54707059,190.3,190.22,26.54707059]
[1734714242380,26.54707059,190.35,190.26,26.54707059]
[1734714242698,32.3073,190.44,190.28,26.54707059]
[1734714242996,26.54707059,190.37,190.32,1.7056]
[1734714243200,26.54707059,190.37,190.32,140.2056]
[1734714243579,26.54707059,190.39,190.32,140.2056]
[1734714243785,26.54707059,190.39,190.32,166.75267059]
[1734714244290,26.54707059,190.41,190.32,172.91717059]
[1734714244599,26.54707059,190.41,190.32,186.05247059]
[1734714244779,19.176,190.49,190.34,165.04707059]
[1734714244780,26.54707059,190.43,190.34,165.04707059]
[1734714244984,19.176,190.49,190.36,181.56906911]
[1734714244985,43.06906911,190.44,190.36,181.56906911]
[1734714245298,43.06906911,190.37,190.36,138.5]
[1734714246772,43.06906911,190.41,190.36,138.5]
[1734714247189,43.06906911,190.39,190.36,138.5]
[1734714247510,43.06906911,190.41,190.36,138.5]
[1734714248389,43.06906911,190.39,190.36,138.5]
[1734714248797,43.06906911,190.39,190.32,140.2056]
[1734714249195,13.1268,190.45,190.32,140.2056]
[1734714249421,43.06906911,190.35,190.32,138.5]
[1734714249718,43.06906911,190.33,190.26,146.6823]
[1734714249878,43.06906911,190.31,190.26,146.6823]
[1734714250079,43.06906911,190.29,190.26,140.1686]
[1734714250682,43.06906911,190.31,190.26,140.1686]
[1734714250881,43.06906911,190.35,190.26,140.1686]
[1734714251098,43.06906911,190.33,190.26,140.1686]
[1734714251482,43.06906911,190.31,190.26,140.1686]
[1734714251893,43.06906911,190.33,190.26,140.1686]
[1734714253235,43.06906911,190.35,190.27,43.06906911]
[1734714254499,43.06906911,190.39,190.29,43.06906911]
[1734714254693,43.06906911,190.39,190.31,181.56906911]
[1734714255204,13.1269,190.45,190.31,181.56906911]
[1734714255409,43.06906911,190.41,190.32,144.9131]
[1734714255728,43.06906911,190.41,190.33,43.06906911]
[1734714255926,43.06906911,190.39,190.32,144.9131]
[1734714256221,43.06906911,190.37,190.32,138.5]
[1734714257899,43.06906911,190.35,190.32,138.5]
[1734714258100,43.06906911,190.37,190.29,43.06906911]
[1734714258311,43.06906911,190.32,190.27,144.6388]
[1734714258531,43.06906911,190.34,190.27,144.6388]
[1734714258840,43.06906911,190.34,190.27,144.54610599]
[1734714259422,43.06906911,190.32,190.27,138.5]
[1734714259730,43.06906911,190.28,190.23,138.5]
[1734714259895,43.06906911,190.25,190.23,138.5]
[1734714260100,43.06906911,190.27,190.2,140.1814]
[1734714260430,43.06906911,190.25,190.2,140.1814]
[1734714260633,43.06906911,190.27,190.2,140.1814]
[1734714260920,43.06906911,190.29,190.2,140.1814]
[1734714261103,43.06906911,190.29,190.21,43.06906911]
[1734714261830,43.06906911,190.29,190.22,6.2001]
[1734714262530,43.06906911,190.31,190.23,43.06906911]
[1734714262837,43.06906911,190.33,190.23,182.35722248]
[1734714263042,43.06906911,190.33,190.25,43.06906911]
[1734714263203,43.06906911,190.33,190.25,181.56906911]
[1734714263406,43.06906911,190.35,190.27,43.06906911]
[1734714263634,43.06906911,190.35,190.27,181.56906911]
[1734714263942,43.06906911,190.37,190.27,181.56906911]
[1734714264115,43.06906911,190.35,190.27,181.56906911]
[1734714264522,43.06906911,190.35,190.27,138.5]
[1734714265045,26.53002683,190.35,190.27,138.5]
[1734714268036,26.53002683,190.33,190.27,138.5]
[1734714268213,26.53002683,190.31,190.27,138.5]
[1734714268413,26.53002683,190.29,190.27,138.5]
[1734714268612,26.53002683,190.31,190.27,138.5]
[1734714270611,26.53002683,190.33,190.27,138.5]
[1734714271340,26.53002683,190.31,190.27,138.5]
[1734714271509,26.53002683,190.29,190.27,138.5]
[1734714271719,26.53002683,190.29,190.22,144.7001]
[1734714272033,26.53002683,190.27,190.22,144.7001]
[1734714273534,26.53002683,190.25,190.22,144.7001]
[1734714274022,26.53002683,190.25,190.22,138.5]
[1734714274412,2.14939968,190.37,190.28,6.5137]
[1734714274605,11.76178821,190.39,190.36,26.53002683]
[1734714274837,11.76178821,190.39,190.38,26.53002683]
[1734714275225,7.88344783,190.45,190.38,132.8]
[1734714275419,7.88344783,190.45,190.39,0.7875065]
[1734714275642,26.53002683,190.48,190.39,0.7875065]
[1734714275818,26.53002683,190.5,190.4,132.8]
[1734714276133,26.53002683,190.5,190.42,28.16682683]
[1734714276335,26.53002683,190.5,190.42,134.4368]
[1734714276514,26.53002683,190.5,190.43,0.78735249]
[1734714277813,26.53002683,190.52,190.43,107.05732566]
[1734714278036,26.53002683,190.52,190.43,106.26997317]
[1734714278634,26.53002683,190.56,190.46,26.53002683]
[1734714278938,26.53002683,190.52,190.47,106.26997317]
[1734714280944,26.53002683,190.54,190.47,106.26997317]
[1734714281127,26.53002683,190.56,190.47,106.26997317]
[1734714281315,26.53002683,190.54,190.47,106.26997317]
[1734714282123,26.53002683,190.52,190.47,106.26997317]
[1734714282331,26.53002683,190.5,190.47,106.26997317]
[1734714283044,26.53002683,190.48,190.42,107.90677317]
[1734714284125,26.53002683,190.5,190.42,107.90677317]
[1734714284341,26.53002683,190.5,190.42,134.4368]
[1734714284534,26.53002683,190.52,190.44,26.53002683]
[1734714284722,26.53002683,190.5,190.42,134.4368]
[1734714285121,20.0,190.57,190.42,107.90677317]
[1734714285122,26.53002683,190.48,190.42,107.90677317]
[1734714285344,26.53002683,190.5,190.42,134.4368]
[1734714286753,26.53002683,190.48,190.42,107.90677317]
[1734714287656,26.53002683,190.44,190.42,106.26997317]
[1734714287954,26.53002683,190.44,190.36,107.82057317]
[1734714288130,26.53002683,190.42,190.36,107.82057317]
[1734714292736,26.53002683,190.38,190.35,106.26997317]
[1734714294051,26.53002683,190.4,190.33,26.53002683]
[1734714294354,26.53002683,190.4,190.34,0.78772776]
[1734714294558,26.53002683,190.42,190.34,0.78772776]
[1734714295327,26.53002683,190.4,190.34,133.58772776]
[1734714295631,26.53002683,190.4,190.34,132.8]
[1734714295823,26.53002683,190.4,190.35,0.78775735]
[1734714296051,26.53002683,190.42,190.35,133.58775735]
[1734714296359,26.53002683,190.44,190.35,159.33002683]
[1734714296854,26.53002683,190.44,190.37,26.53002683]
[1734714297051,26.53002683,190.44,190.38,0.78758474]
[1734714297752,26.53002683,190.48,190.4,141.0078]
[1734714297957,24.19219845,190.6,190.41,160.11741611]
[1734714298165,26.53002683,190.52,190.43,26.53002683]
[1734714298466,26.53002683,190.52,190.44,0.78724943]
[1734714298656,26.53002683,190.56,190.47,26.53002683]
[1734714298958,26.53002683,190.54,190.48,133.58709794]
[1734714299163,26.53002683,190.54,190.48,132.8]
[1734714299965,26.53002683,190.52,190.48,132.8]
[1734714301039,26.53002683,190.54,190.48,132.8]
[1734714301340,26.53002683,190.56,190.49,133.58712766]
[1734714301555,26.53002683,190.56,190.49,132.8]
[1734714301755,26.53002683,190.56,190.51,7.834]
[1734714302059,26.53002683,190.56,190.52,0.78699751]
[1734714302232,26.53002683,190.54,190.49,132.8]
[1734714303456,26.53002683,190.56,190.49,132.8]
[1734714304463,26.53002683,190.6,190.51,26.53002683]
[1734714304666,26.53002683,190.62,190.53,26.53002683]
[1734714304874,26.53002683,190.62,190.54,0.78686329]